fUST/lending_fUST_20250219
["ID","MTS","AMOUNT","RATE_DAILY","PERIOD"]
[353544031,1739905854082,-528.02,0.00014191,2]
[353544033,1739905854092,-500.0,0.00014191,2]
[353544035,1739905854102,-500.0,0.00014191,2]
[353544037,1739905854112,-500.0,0.00014191,2]
[353544039,1739905854122,-1810.39,0.00014191,2]
[353544041,1739905854132,-1131.18133988,0.00014221,2]
[353544043,1739905854142,-503.89609035,0.00014227,2]
[353544045,1739905854151,-500.0,0.00014273,2]
[353544047,1739905854161,-500.0,0.00014273,2]
[353544049,1739905854171,-246.6,0.00014273,2]
[353544051,1739905854181,-584.67,0.00014273,2]
[353544053,1739905854191,-786.15,0.00014273,2]
[353544055,1739905854202,-500.0,0.00014273,2]
[353544057,1739905854214,-500.0,0.00014273,2]
[353544059,1739905854224,-500.0,0.00014273,2]
[353544061,1739905854233,-500.0,0.00014273,2]
[353544063,1739905854243,-500.0,0.00014273,2]
[353544064,1739905854253,-567.13,0.00014273,2]
[353544066,1739905854263,-500.0,0.00014273,2]
[353544068,1739905854273,-500.0,0.00014273,2]
[353544070,1739905854284,-588.57,0.00014273,2]
[353544072,1739905854294,-500.0,0.00014273,2]
[353544074,1739905854303,-500.0,0.00014273,2]
[353544076,1739905854313,-606.93,0.00014273,2]
[353544078,1739905854323,-504.11347222,0.00014273,2]
[353544080,1739905854336,-500.0,0.00014273,2]
[353544082,1739905854346,-500.0,0.00014273,2]
[353544084,1739905854356,-500.0,0.00014273,2]
[353544086,1739905854366,-500.0,0.00014273,2]
[353544088,1739905854378,-500.0,0.00014273,2]
[353544090,1739905854388,-500.0,0.00014273,2]
[353544092,1739905854400,-778.97,0.00014273,2]
[353544094,1739905854412,-500.0,0.00014273,2]
[353544096,1739905854422,-500.0,0.00014273,2]
[353544098,1739905854431,-500.0,0.00014273,2]
[353544100,1739905854441,-5674.76,0.00014273,2]
[353544101,1739905854451,-500.0,0.00014273,2]
[353544103,1739905854461,-500.0,0.00014273,2]
[353544105,1739905854471,-500.0,0.00014273,2]
[353544107,1739905854481,-500.0,0.00014273,2]
[353544109,1739905854493,-500.0,0.00014273,2]
[353544112,1739905854504,-539.24719466,0.00014273,2]
[353544113,1739905854514,-500.0,0.00014273,2]
[353544115,1739905854524,-500.0,0.00014273,2]
[353544117,1739905854535,-500.0,0.00014273,2]
[353544120,1739905854546,-500.0,0.00014273,2]
[353544121,1739905854556,-500.0,0.00014273,2]
[353544123,1739905854566,-536.89,0.00014273,2]
[353544125,1739905854578,-500.0,0.00014273,2]
[353544126,1739905854588,-2790.27,0.00014273,2]
[353544127,1739905854599,-1226.03,0.00014273,2]
[353544128,1739905854610,-500.0,0.00014273,2]
[353544129,1739905854621,-500.0,0.00014273,2]
[353544130,1739905854632,-647.03,0.00014273,2]
[353544131,1739905854642,-647.39,0.00014273,2]
[353544132,1739905854653,-1260.23,0.00014273,2]
[353544133,1739905854663,-500.0,0.00014273,2]
[353544134,1739905854673,-500.0,0.00014273,2]
[353544135,1739905854683,-517.07,0.00014273,2]
[353544136,1739905854693,-500.0,0.00014273,2]
[353544137,1739905854703,-1026.38,0.00014273,2]
[353544139,1739905854713,-8379.46,0.00014273,2]
[353544141,1739905854723,-500.0,0.00014273,2]
[353544143,1739905854733,-588.93,0.00014273,2]
[353544145,1739905854741,-500.0,0.00014273,2]
[353544147,1739905854751,-1252.55,0.00014273,2]
[353544149,1739905854760,-500.0,0.00014273,2]
[353544151,1739905854770,-500.0,0.00014273,2]
[353544153,1739905854781,-500.0,0.00014273,2]
[353544155,1739905854791,-1497.2,0.00014273,2]
[353544157,1739905854801,-500.0,0.00014273,2]
[353544159,1739905854811,-708.02,0.00014273,2]
[353544161,1739905854820,-500.0,0.00014273,2]
[353544163,1739905854832,-2867.07,0.00014273,2]
[353544165,1739905854842,-565.05,0.00014273,2]
[353544168,1739905854852,-500.0,0.00014273,2]
[353544169,1739905854861,-500.0,0.00014273,2]
[353544172,1739905854875,-500.0,0.00014273,2]
[353544174,1739905854886,-500.0,0.00014273,2]
[353544176,1739905854896,-500.0,0.00014273,2]
[353544178,1739905854906,-26636.36,0.00014273,2]
[353544180,1739905854917,-783.28,0.00014273,2]
[353544182,1739905854927,-500.0,0.00014273,2]
[353544184,1739905854936,-500.0,0.00014273,2]
[353544186,1739905854945,-1714.88,0.00014273,2]
[353544188,1739905854955,-978.2,0.00014273,2]
[353544190,1739905854964,-500.0,0.00014273,2]
[353544192,1739905854974,-832.65,0.00014273,2]
[353544194,1739905854984,-541.25,0.00014273,2]
[353544196,1739905854994,-528.02,0.00014273,2]
[353544198,1739905855004,-500.0,0.00014273,2]
[353544200,1739905855013,-500.0,0.00014273,2]
[353544202,1739905855023,-500.0,0.00014273,2]
[353544204,1739905855033,-1810.39,0.00014273,2]
[353544206,1739905855043,-172.8321209,0.00014338,2]
[353544209,1739905855052,-500.0,0.00014356,2]
[353544211,1739905855062,-584.67,0.00014356,2]
[353544213,1739905855072,-786.15,0.00014356,2]
[353544215,1739905855083,-500.0,0.00014356,2]
[353544217,1739905855092,-500.0,0.00014356,2]
[353544219,1739905855103,-500.0,0.00014356,2]
[353544220,1739905855113,-500.0,0.00014356,2]
[353544222,1739905855123,-297.59622067,0.00014356,2]
[353544224,1739905855133,-567.13,0.00014356,2]
[353544226,1739905855143,-500.0,0.00014356,2]
[353544228,1739905855152,-500.0,0.00014356,2]
[353544230,1739905855162,-500.0,0.00014356,2]
[353544232,1739905855172,-500.0,0.00014356,2]
[353544234,1739905855182,-606.93,0.00014356,2]
[353544237,1739905855192,-500.0,0.00014356,2]
[353544239,1739905855204,-500.0,0.00014356,2]
[353544241,1739905855215,-500.0,0.00014356,2]
[353544243,1739905855225,-500.0,0.00014356,2]
[353544245,1739905855235,-500.0,0.00014356,2]
[353544247,1739905855245,-500.0,0.00014356,2]
[353544249,1739905855255,-778.97,0.00014356,2]
[353544251,1739905855266,-341.48,0.00014356,2]
[353544253,1739905855276,-500.0,0.00014356,2]
[353544255,1739905855287,-500.0,0.00014356,2]
[353544257,1739905855297,-5674.76,0.00014356,2]
[353544259,1739905855306,-500.0,0.00014356,2]
[353544261,1739905855315,-340.18,0.00014356,2]
[353544263,1739905855325,-500.0,0.00014356,2]
[353544265,1739905855335,-500.0,0.00014356,2]
[353544267,1739905855346,-500.0,0.00014356,2]
[353544269,1739905855356,-500.0,0.00014356,2]
[353544271,1739905855366,-500.0,0.00014356,2]
[353544273,1739905855375,-500.0,0.00014356,2]
[353544275,1739905855386,-500.0,0.00014356,2]
[353544278,1739905855396,-500.0,0.00014356,2]
[353544280,1739905855407,-536.89,0.00014356,2]
[353544282,1739905855417,-500.0,0.00014356,2]
[353544284,1739905855427,-2790.27,0.00014356,2]
[353544286,1739905855437,-1226.03,0.00014356,2]
[353544288,1739905855447,-500.0,0.00014356,2]
[353544290,1739905855459,-500.0,0.00014356,2]
[353544292,1739905855469,-647.03,0.00014356,2]
[353544294,1739905855479,-647.39,0.00014356,2]
[353544296,1739905855490,-1260.23,0.00014356,2]
[353544298,1739905855500,-500.0,0.00014356,2]
[353544300,1739905855510,-500.0,0.00014356,2]
[353544303,1739905855520,-517.07,0.00014356,2]
[353544305,1739905855531,-500.0,0.00014356,2]
[353544307,1739905855540,-1026.38,0.00014356,2]
[353544309,1739905855550,-8379.46,0.00014356,2]
[353544311,1739905855560,-500.0,0.00014356,2]
[353544313,1739905855570,-588.93,0.00014356,2]
[353544315,1739905855581,-500.0,0.00014356,2]
[353544317,1739905855591,-1252.55,0.00014356,2]
[353544319,1739905855601,-504.53299304,0.00014356,2]
[353544321,1739905855611,-500.0,0.00014356,2]
[353544334,1739905855720,-500.0,0.00014356,2]
[353544336,1739905855730,-1497.2,0.00014356,2]
[353544338,1739905855739,-500.0,0.00014356,2]
[353544340,1739905855749,-708.02,0.00014356,2]
[353544342,1739905855758,-500.0,0.00014356,2]
[353544344,1739905855767,-2867.07,0.00014356,2]
[353544346,1739905855777,-565.05,0.00014356,2]
[353544348,1739905855785,-500.0,0.00014356,2]
[353544350,1739905855795,-500.0,0.00014356,2]
[353544352,1739905855804,-500.0,0.00014356,2]
[353544354,1739905855814,-500.0,0.00014356,2]
[353544356,1739905855824,-500.0,0.00014356,2]
[353544358,1739905855835,-26636.36,0.00014356,2]
[353544360,1739905855844,-783.28,0.00014356,2]
[353544362,1739905855854,-500.0,0.00014356,2]
[353544364,1739905855864,-500.0,0.00014356,2]
[353544366,1739905855873,-1714.88,0.00014356,2]
[353544368,1739905855883,-978.2,0.00014356,2]
[353544371,1739905855894,-272.54966657,0.00014356,2]
[353544373,1739905855903,-832.65,0.00014356,2]
[353544375,1739905855913,-541.25,0.00014356,2]
[353544377,1739905855922,-528.02,0.00014356,2]
[353544379,1739905855932,-500.0,0.00014356,2]
[353544381,1739905855941,-500.0,0.00014356,2]
[353544383,1739905855951,-500.0,0.00014356,2]
[353544385,1739905855960,-1810.39,0.00014356,2]
[353544386,1739905855970,-500.0,0.00014438,2]
[353544389,1739905855980,-584.67,0.00014438,2]
[353544391,1739905855989,-786.15,0.00014438,2]
[353544393,1739905855999,-500.0,0.00014438,2]
[353544395,1739905856008,-500.0,0.00014438,2]
[353544397,1739905856018,-500.0,0.00014438,2]
[353544399,1739905856028,-500.0,0.00014438,2]
[353544401,1739905856037,-567.13,0.00014438,2]
[353544402,1739905856047,-500.0,0.00014438,2]
[353544405,1739905856057,-500.0,0.00014438,2]
[353544406,1739905856066,-500.0,0.00014438,2]
[353544409,1739905856076,-500.0,0.00014438,2]
[353544411,1739905856086,-606.93,0.00014438,2]
[353544413,1739905856095,-500.0,0.00014438,2]
[353544415,1739905856104,-500.0,0.00014438,2]
[353544417,1739905856113,-500.0,0.00014438,2]
[353544419,1739905856123,-500.0,0.00014438,2]
[353544421,1739905856132,-387.47419744,0.00014438,2]
[353544423,1739905856142,-500.0,0.00014438,2]
[353544425,1739905856151,-778.97,0.00014438,2]
[353544427,1739905856160,-500.0,0.00014438,2]
[353544429,1739905856169,-500.0,0.00014438,2]
[353544431,1739905856179,-5674.76,0.00014438,2]
[353544433,1739905856189,-500.0,0.00014438,2]
[353544435,1739905856198,-500.0,0.00014438,2]
[353544437,1739905856212,-500.0,0.00014438,2]
[353544439,1739905856221,-500.0,0.00014438,2]
[353544441,1739905856231,-500.0,0.00014438,2]
[353544443,1739905856240,-500.0,0.00014438,2]
[353544445,1739905856250,-500.0,0.00014438,2]
[353544447,1739905856259,-519.67716213,0.00014438,2]
[353544449,1739905856268,-500.0,0.00014438,2]
[353544451,1739905856278,-536.89,0.00014438,2]
[353544453,1739905856288,-305.75,0.00014438,2]
[353544455,1739905856297,-2790.27,0.00014438,2]
[353544457,1739905856307,-1226.03,0.00014438,2]
[353544459,1739905856316,-500.0,0.00014438,2]
[353544461,1739905856326,-500.0,0.00014438,2]
[353544463,1739905856335,-647.03,0.00014438,2]
[353544465,1739905856345,-647.39,0.00014438,2]
[353544467,1739905856355,-1260.23,0.00014438,2]
[353544469,1739905856364,-518.57079483,0.00014438,2]
[353544471,1739905856374,-500.0,0.00014438,2]
[353544473,1739905856383,-517.07,0.00014438,2]
[353544475,1739905856393,-500.0,0.00014438,2]
[353544477,1739905856402,-1026.38,0.00014438,2]
[353544479,1739905856412,-8379.46,0.00014438,2]
[353544481,1739905856421,-500.0,0.00014438,2]
[353544483,1739905856430,-500.0,0.00014438,2]
[353544485,1739905856439,-588.93,0.00014438,2]
[353544487,1739905856451,-1252.55,0.00014438,2]
[353544489,1739905856460,-500.0,0.00014438,2]
[353544491,1739905856469,-500.0,0.00014438,2]
[353544493,1739905856479,-1497.2,0.00014438,2]
[353544495,1739905856489,-500.0,0.00014438,2]
[353544497,1739905856498,-708.02,0.00014438,2]
[353544499,1739905856508,-500.0,0.00014438,2]
[353544501,1739905856518,-2867.07,0.00014438,2]
[353544503,1739905856528,-565.05,0.00014438,2]
[353544505,1739905856537,-500.0,0.00014438,2]
[353544507,1739905856547,-500.0,0.00014438,2]
[353544509,1739905856557,-500.0,0.00014438,2]
[353544511,1739905856567,-500.0,0.00014438,2]
[353544513,1739905856578,-500.0,0.00014438,2]
[353544515,1739905856587,-26636.36,0.00014438,2]
[353544517,1739905856597,-783.28,0.00014438,2]
[353544519,1739905856607,-500.0,0.00014438,2]
[353544521,1739905856616,-500.0,0.00014438,2]
[353544523,1739905856626,-1714.88,0.00014438,2]
[353544525,1739905856636,-978.2,0.00014438,2]
[353544527,1739905856646,-832.65,0.00014438,2]
[353544529,1739905856655,-541.25,0.00014438,2]
[353544531,1739905856665,-528.02,0.00014438,2]
[353544533,1739905856675,-500.0,0.00014438,2]
[353544535,1739905856685,-500.0,0.00014438,2]
[353544537,1739905856694,-500.0,0.00014438,2]
[353544539,1739905856704,-1810.39,0.00014438,2]
[353544541,1739905856713,-900.0,0.00014438,2]
[353544543,1739905856723,-500.0,0.0001452,2]
[353544545,1739905856733,-584.67,0.0001452,2]
[353544547,1739905856742,-786.15,0.0001452,2]
[353544549,1739905856752,-500.0,0.0001452,2]
[353544551,1739905856762,-500.0,0.0001452,2]
[353544553,1739905856771,-500.0,0.0001452,2]
[353544555,1739905856780,-500.0,0.0001452,2]
[353544557,1739905856789,-567.13,0.0001452,2]
[353544559,1739905856799,-500.0,0.0001452,2]
[353544561,1739905856807,-500.0,0.0001452,2]
[353544563,1739905856817,-500.0,0.0001452,2]
[353544565,1739905856828,-500.0,0.0001452,2]
[353544567,1739905856837,-606.93,0.0001452,2]
[353544569,1739905856847,-500.0,0.0001452,2]
[353544571,1739905856856,-500.0,0.0001452,2]
[353544573,1739905856866,-500.0,0.0001452,2]
[353544575,1739905856875,-500.0,0.0001452,2]
[353544577,1739905856884,-500.0,0.0001452,2]
[353544579,1739905856894,-778.97,0.0001452,2]
[353544581,1739905856903,-500.0,0.0001452,2]
[353544583,1739905856913,-500.0,0.0001452,2]
[353544585,1739905856923,-5674.76,0.0001452,2]
[353544587,1739905856932,-500.0,0.0001452,2]
[353544589,1739905856942,-500.0,0.0001452,2]
[353544591,1739905856952,-500.0,0.0001452,2]
[353544593,1739905856961,-500.0,0.0001452,2]
[353544595,1739905856971,-500.0,0.0001452,2]
[353544597,1739905856980,-500.0,0.0001452,2]
[353544599,1739905856989,-500.0,0.0001452,2]
[353544601,1739905856998,-500.0,0.0001452,2]
[353544603,1739905857010,-536.89,0.0001452,2]
[353544605,1739905857019,-2790.27,0.0001452,2]
[353544607,1739905857029,-1226.03,0.0001452,2]
[353544609,1739905857038,-500.0,0.0001452,2]
[353544611,1739905857048,-500.0,0.0001452,2]
[353544613,1739905857058,-647.03,0.0001452,2]
[353544615,1739905857068,-647.39,0.0001452,2]
[353544617,1739905857079,-1260.23,0.0001452,2]
[353544619,1739905857089,-500.0,0.0001452,2]
[353544621,1739905857098,-517.07,0.0001452,2]
[353544623,1739905857108,-500.0,0.0001452,2]
[353544625,1739905857118,-1026.38,0.0001452,2]
[353544627,1739905857128,-8379.46,0.0001452,2]
[353544629,1739905857138,-500.0,0.0001452,2]
[353544631,1739905857147,-500.0,0.0001452,2]
[353544633,1739905857157,-588.93,0.0001452,2]
[353544635,1739905857167,-1252.55,0.0001452,2]
[353544637,1739905857176,-500.0,0.0001452,2]
[353544639,1739905857185,-500.0,0.0001452,2]
[353544641,1739905857196,-1497.2,0.0001452,2]
[353544643,1739905857208,-500.0,0.0001452,2]
[353544645,1739905857218,-708.02,0.0001452,2]
[353544647,1739905857228,-500.0,0.0001452,2]
[353544649,1739905857238,-2867.07,0.0001452,2]
[353544651,1739905857248,-565.05,0.0001452,2]
[353544653,1739905857259,-500.0,0.0001452,2]
[353544656,1739905857269,-273.26,0.0001452,2]
[353544658,1739905857281,-500.0,0.0001452,2]
[353544660,1739905857292,-500.0,0.0001452,2]
[353544662,1739905857302,-500.0,0.0001452,2]
[353544664,1739905857313,-26636.36,0.0001452,2]
[353544666,1739905857323,-783.28,0.0001452,2]
[353544668,1739905857334,-500.0,0.0001452,2]
[353544670,1739905857342,-500.0,0.0001452,2]
[353544672,1739905857352,-1714.88,0.0001452,2]
[353544673,1739905857365,-978.2,0.0001452,2]
[353544676,1739905857375,-832.65,0.0001452,2]
[353544677,1739905857384,-541.25,0.0001452,2]
[353544679,1739905857394,-528.02,0.0001452,2]
[353544682,1739905857404,-324.40469123,0.0001452,2]
[353544684,1739905857413,-500.0,0.0001452,2]
[353544686,1739905857423,-500.0,0.0001452,2]
[353544688,1739905857433,-1810.39,0.0001452,2]
[353544690,1739905857442,-336.0,0.0001457,2]
[353544692,1739905857451,-500.0,0.00014593,7]
[353544694,1739905857461,-500.0,0.00014593,7]
[353544696,1739905857471,-500.0,0.00014593,7]
[353544698,1739905857481,-500.0,0.00014593,7]
[353544699,1739905857491,-500.0,0.00014593,7]
[353544702,1739905857501,-500.0,0.00014593,7]
[353544704,1739905857511,-500.0,0.00014593,7]
[353544706,1739905857521,-500.0,0.00014593,7]
[353544708,1739905857531,-500.0,0.00014593,7]
[353544710,1739905857540,-500.0,0.00014593,7]
[353544711,1739905857550,-500.0,0.00014593,7]
[353544713,1739905857559,-500.0,0.00014593,7]
[353544715,1739905857569,-500.0,0.00014593,7]
[353544717,1739905857580,-500.0,0.00014593,7]
[353544719,1739905857590,-252.96,0.00014593,7]
[353544721,1739905857599,-500.0,0.00014593,7]
[353544723,1739905857609,-500.0,0.00014593,7]
[353544725,1739905857618,-500.0,0.00014593,7]
[353544727,1739905857627,-500.0,0.00014593,7]
[353544729,1739905857637,-500.0,0.00014593,7]
[353544732,1739905857647,-500.0,0.00014593,7]
[353544734,1739905857657,-500.0,0.00014593,7]
[353544736,1739905857666,-500.0,0.00014593,7]
[353544738,1739905857675,-500.0,0.00014593,7]
[353544740,1739905857684,-500.0,0.00014593,7]
[353544742,1739905857693,-500.0,0.00014593,7]
[353544744,1739905857702,-500.0,0.00014593,7]
[353544745,1739905857712,-500.0,0.00014593,7]
[353544748,1739905857721,-500.0,0.00014593,7]
[353544750,1739905857731,-500.0,0.00014593,7]
[353544752,1739905857741,-500.0,0.00014593,7]
[353544754,1739905857750,-500.0,0.00014593,7]
[353544756,1739905857759,-500.0,0.00014593,7]
[353544758,1739905857768,-500.0,0.00014593,7]
[353544760,1739905857778,-500.0,0.00014593,7]
[353544762,1739905857787,-500.0,0.00014602,2]
[353544764,1739905857796,-584.67,0.00014602,2]
[353544766,1739905857806,-786.15,0.00014602,2]
[353544767,1739905857816,-500.0,0.00014602,2]
[353544768,1739905857825,-500.0,0.00014602,2]
[353544769,1739905857835,-500.0,0.00014602,2]
[353544770,1739905857844,-500.0,0.00014602,2]
[353544771,1739905857854,-567.13,0.00014602,2]
[353544772,1739905857863,-500.0,0.00014602,2]
[353544773,1739905857872,-500.0,0.00014602,2]
[353544774,1739905857882,-500.0,0.00014602,2]
[353544775,1739905857892,-500.0,0.00014602,2]
[353544776,1739905857901,-606.93,0.00014602,2]
[353544777,1739905857911,-500.0,0.00014602,2]
[353544778,1739905857920,-500.0,0.00014602,2]
[353544779,1739905857929,-500.0,0.00014602,2]
[353544780,1739905857939,-500.0,0.00014602,2]
[353544782,1739905857948,-500.0,0.00014602,2]
[353544784,1739905857957,-778.97,0.00014602,2]
[353544785,1739905857966,-500.0,0.00014602,2]
[353544787,1739905857978,-500.0,0.00014602,2]
[353544789,1739905857987,-5674.76,0.00014602,2]
[353544791,1739905857998,-500.0,0.00014602,2]
[353544793,1739905858008,-500.0,0.00014602,2]
[353544795,1739905858018,-500.0,0.00014602,2]
[353544797,1739905858027,-500.0,0.00014602,2]
[353544799,1739905858037,-500.0,0.00014602,2]
[353544801,1739905858047,-500.0,0.00014602,2]
[353544803,1739905858058,-500.0,0.00014602,2]
[353544805,1739905858067,-612.26164495,0.00014602,2]
[353544808,1739905858079,-536.89,0.00014602,2]
[353544809,1739905858089,-2790.27,0.00014602,2]
[353544811,1739905858100,-1226.03,0.00014602,2]
[353544813,1739905858109,-500.0,0.00014602,2]
[353544815,1739905858119,-500.0,0.00014602,2]
[353544817,1739905858129,-647.03,0.00014602,2]
[353544819,1739905858138,-647.39,0.00014602,2]
[353544821,1739905858149,-1260.23,0.00014602,2]
[353544823,1739905858158,-500.0,0.00014602,2]
[353544825,1739905858168,-517.07,0.00014602,2]
[353544827,1739905858177,-500.0,0.00014602,2]
[353544829,1739905858187,-1026.38,0.00014602,2]
[353544840,1739905858289,-8379.46,0.00014602,2]
[353544842,1739905858300,-500.0,0.00014602,2]
[353544844,1739905858310,-500.0,0.00014602,2]
[353544846,1739905858320,-588.93,0.00014602,2]
[353544848,1739905858331,-1252.55,0.00014602,2]
[353544850,1739905858341,-500.0,0.00014602,2]
[353544852,1739905858350,-500.0,0.00014602,2]
[353544854,1739905858360,-1497.2,0.00014602,2]
[353544856,1739905858370,-500.0,0.00014602,2]
[353544858,1739905858380,-708.02,0.00014602,2]
[353544860,1739905858390,-500.0,0.00014602,2]
[353544862,1739905858399,-2867.07,0.00014602,2]
[353544864,1739905858409,-565.05,0.00014602,2]
[353544866,1739905858419,-500.0,0.00014602,2]
[353544868,1739905858430,-500.0,0.00014602,2]
[353544870,1739905858439,-500.0,0.00014602,2]
[353544872,1739905858449,-500.0,0.00014602,2]
[353544874,1739905858459,-26636.36,0.00014602,2]
[353544876,1739905858469,-783.28,0.00014602,2]
[353544878,1739905858479,-500.0,0.00014602,2]
[353544880,1739905858489,-260.46421963,0.00014602,2]
[353544882,1739905858500,-1714.88,0.00014602,2]
[353544884,1739905858514,-978.2,0.00014602,2]
[353544886,1739905858524,-832.65,0.00014602,2]
[353544888,1739905858533,-541.25,0.00014602,2]
[353544890,1739905858543,-528.02,0.00014602,2]
[353544892,1739905858555,-500.0,0.00014602,2]
[353544894,1739905858566,-500.0,0.00014602,2]
[353544896,1739905858575,-1810.39,0.00014602,2]
[353544898,1739905858587,-500.0,0.00014684,2]
[353544900,1739905858597,-584.67,0.00014684,2]
[353544902,1739905858606,-786.15,0.00014684,2]
[353544904,1739905858616,-500.0,0.00014684,2]
[353544906,1739905858626,-500.0,0.00014684,2]
[353544908,1739905858636,-403.58,0.00014684,2]
[353544911,1739905858645,-500.0,0.00014684,2]
[353544912,1739905858655,-567.13,0.00014684,2]
[353544914,1739905858664,-500.0,0.00014684,2]
[353544916,1739905858674,-500.0,0.00014684,2]
[353544918,1739905858683,-500.0,0.00014684,2]
[353544920,1739905858692,-500.0,0.00014684,2]
[353544922,1739905858703,-606.93,0.00014684,2]
[353544924,1739905858712,-500.0,0.00014684,2]
[353544926,1739905858721,-500.0,0.00014684,2]
[353544928,1739905858732,-500.0,0.00014684,2]
[353544930,1739905858741,-500.0,0.00014684,2]
[353544932,1739905858751,-500.0,0.00014684,2]
[353544935,1739905858760,-778.97,0.00014684,2]
[353544936,1739905858770,-500.0,0.00014684,2]
[353544939,1739905858780,-500.0,0.00014684,2]
[353544940,1739905858789,-5674.76,0.00014684,2]
[353544942,1739905858799,-500.0,0.00014684,2]
[353544944,1739905858808,-500.0,0.00014684,2]
[353544946,1739905858818,-500.0,0.00014684,2]
[353544948,1739905858827,-500.0,0.00014684,2]
[353544950,1739905858837,-500.0,0.00014684,2]
[353544952,1739905858847,-500.0,0.00014684,2]
[353544954,1739905858857,-500.0,0.00014684,2]
[353544956,1739905858867,-536.89,0.00014684,2]
[353544958,1739905858878,-2790.27,0.00014684,2]
[353544960,1739905858888,-1226.03,0.00014684,2]
[353544962,1739905858898,-500.0,0.00014684,2]
[353544964,1739905858907,-500.0,0.00014684,2]
[353544966,1739905858917,-647.03,0.00014684,2]
[353544968,1739905858927,-1260.23,0.00014684,2]
[353544970,1739905858937,-647.39,0.00014684,2]
[353544972,1739905858948,-365.73664343,0.00014684,2]
[353544974,1739905858958,-517.07,0.00014684,2]
[353544976,1739905858968,-500.0,0.00014684,2]
[353544978,1739905858977,-1026.38,0.00014684,2]
[353544980,1739905858988,-8379.46,0.00014684,2]
[353544982,1739905858998,-500.0,0.00014684,2]
[353544984,1739905859007,-317.17217767,0.00014684,2]
[353544986,1739905859017,-588.93,0.00014684,2]
[353544988,1739905859026,-1252.55,0.00014684,2]
[353544990,1739905859036,-500.0,0.00014684,2]
[353544992,1739905859046,-500.0,0.00014684,2]
[353544994,1739905859056,-1497.2,0.00014684,2]
[353544996,1739905859067,-500.0,0.00014684,2]
[353544998,1739905859077,-708.02,0.00014684,2]
[353545000,1739905859086,-500.0,0.00014684,2]
[353545003,1739905859096,-2867.07,0.00014684,2]
[353545005,1739905859106,-565.05,0.00014684,2]
[353545007,1739905859116,-352.0485204,0.00014684,2]
[353545009,1739905859126,-500.0,0.00014684,2]
[353545011,1739905859136,-500.0,0.00014684,2]
[353545013,1739905859146,-500.0,0.00014684,2]
[353545015,1739905859155,-26636.36,0.00014684,2]
[353545017,1739905859164,-783.28,0.00014684,2]
[353545019,1739905859174,-500.0,0.00014684,2]
[353545021,1739905859183,-1714.88,0.00014684,2]
[353545022,1739905859192,-978.2,0.00014684,2]
[353545024,1739905859204,-832.65,0.00014684,2]
[353545027,1739905859215,-541.25,0.00014684,2]